fUSD/lending_fUSD_20240708
["ID","MTS","AMOUNT","RATE_DAILY","PERIOD"]
[331512998,1720445151357,-3097.92,0.00054246,120]
[331512999,1720445151440,-4977.25,0.00054246,120]
[331513000,1720445151525,-2569.11,0.00054246,120]
[331513001,1720445151608,-817.49,0.00054246,120]
[331513002,1720445151696,-6557.78,0.00054246,120]
[331513003,1720445151781,-8047.98,0.00054246,120]
[331513004,1720445151864,-4890.76,0.00054246,120]
[331513005,1720445151950,-926.07,0.00054246,120]
[331513006,1720445152033,-634.86,0.00054246,120]
[331513007,1720445152117,-5071.97,0.00054246,120]
[331513008,1720445152205,-5197.47,0.00054246,120]
[331513009,1720445152288,-12824.58,0.00054246,120]
[331513010,1720445152377,-737.63,0.00054246,120]
[331513011,1720445152472,-979.51,0.00054246,120]
[331513012,1720445152563,-5000.69,0.00054246,120]
[331513013,1720445152652,-1089.79,0.00054246,120]
[331513014,1720445152742,-513.84516057,0.00054246,120]
[331513015,1720445152828,-602.11,0.00054246,120]
[331513016,1720445152916,-3962.26,0.00054246,120]
[331513017,1720445153004,-816.01,0.00054246,120]
[331513018,1720445153104,-5967.11,0.00054246,120]
[331513019,1720445153206,-952.17,0.00054246,120]
[331513020,1720445153308,-3856.8,0.00054246,120]
[331513021,1720445153401,-1444.4,0.00054246,120]
[331513022,1720445153492,-4328.98,0.00054246,120]
[331513023,1720445153582,-1667.53,0.00054246,120]
[331513024,1720445153672,-602.68,0.00054246,120]
[331513025,1720445153763,-4918.52,0.00054246,120]
[331513026,1720445153856,-1665.81,0.00054246,120]
[331513027,1720445153949,-1343.01,0.00054246,120]
[331513028,1720445154041,-3737.99,0.00054246,120]
[331513029,1720445154133,-1892.85,0.00054246,120]
[331513030,1720445154229,-2033.08,0.00054246,120]
[331513031,1720445154324,-681.78,0.00054246,120]
[331513032,1720445154418,-2432.96,0.00054246,120]
[331513033,1720445154512,-8334.2,0.00054246,120]
[331513034,1720445154604,-2303.71,0.00054246,120]
[331513035,1720445154698,-500.0,0.00054246,120]
[331513036,1720445154790,-7113.69,0.00054246,120]
[331513037,1720445154883,-2372.86,0.00054246,120]
[331513038,1720445154977,-6365.6,0.00054246,120]
[331513039,1720445155068,-3895.56,0.00054246,120]
[331513040,1720445155160,-4028.67,0.00054246,120]
[331513041,1720445155256,-2932.06,0.00054246,120]
[331513042,1720445155710,-9769.22,0.00054246,120]
[331513043,1720445155806,-3721.64,0.00054246,120]
[331513044,1720445155897,-4737.12,0.00054246,120]
[331513045,1720445155989,-579.46,0.00054246,120]
[331513046,1720445156080,-1491.25,0.00054246,120]
[331513047,1720445156170,-1519.45,0.00054246,120]
[331513048,1720445156262,-9789.62,0.00054246,120]
[331513049,1720445156355,-18403.09,0.00054246,120]
[331513050,1720445156448,-5134.91,0.00054246,120]
[331513051,1720445156540,-364.13253541,0.00054246,120]
[331513052,1720445156625,-2497.28,0.00054246,120]
[331513053,1720445156709,-506.61,0.00054246,120]
[331513054,1720445156790,-552.8,0.00054246,120]
[331513055,1720445156876,-1198.7,0.00054246,120]
[331513056,1720445156966,-1667.87,0.00054246,120]
[331513057,1720445157054,-14120.27,0.00054246,120]
[331513058,1720445157143,-8496.48,0.00054246,120]
[331513059,1720445157231,-5150.8,0.00054246,120]
[331513060,1720445157319,-666.9,0.00054246,120]
[331513061,1720445157404,-500.0,0.00054246,120]
[331513062,1720445157496,-77163.49,0.00054246,120]
[331513063,1720445157580,-1701.37,0.00054246,120]
[331513064,1720445157666,-1695.49,0.00054246,120]
[331513065,1720445157752,-3671.69,0.00054246,120]
[331513066,1720445157841,-43789.77,0.00054246,120]
[331513067,1720445157931,-744.56,0.00054246,120]
[331513068,1720445158020,-5882.08,0.00054246,120]
[331513069,1720445158119,-4253.18,0.00054246,120]
[331513070,1720445158220,-2648.44,0.00054246,120]
[331513071,1720445158319,-2191.17,0.00054246,120]
[331513072,1720445158413,-4023.3,0.00054246,120]
[331513073,1720445158505,-1885.58,0.00054246,120]
[331513074,1720445158597,-286.83732393,0.00054246,120]
[331513075,1720445158687,-20208.54,0.00054246,120]
[331513076,1720445158774,-5732.02,0.00054246,120]
[331513077,1720445158860,-3467.68,0.00054246,120]
[331513078,1720445158947,-3285.94,0.00054246,120]
[331513079,1720445159032,-843.34,0.00054246,120]
[331513080,1720445159126,-4518.2,0.00054246,120]
[331513081,1720445159215,-579.73,0.00054246,120]
[331513082,1720445159306,-7921.19,0.00054246,120]
[331513083,1720445159397,-2995.09,0.00054246,120]
[331513084,1720445159490,-521.56,0.00054246,120]
[331513085,1720445159579,-4816.6,0.00054246,120]
[331513086,1720445159665,-500.0,0.00054246,120]
[331513087,1720445159750,-5616.29,0.00054246,120]
[331513088,1720445159835,-301.5,0.00054246,120]
[331513089,1720445159922,-4754.74,0.00054246,120]
[331513090,1720445160012,-2818.99,0.00054246,120]
[331513091,1720445160103,-3610.51,0.00054246,120]
[331513092,1720445160208,-2101.17,0.00054246,120]
[331513093,1720445160306,-7384.37,0.00054246,120]
[331513094,1720445160396,-500.0,0.00054246,120]
[331513095,1720445160488,-13611.45,0.00054246,120]
[331513096,1720445160578,-965.22,0.00054246,120]
[331513097,1720445160667,-547.56,0.00054246,120]
[331513098,1720445160752,-500.0,0.00054246,120]
[331513099,1720445160838,-583.78,0.00054246,120]
[331513100,1720445160925,-3854.26,0.00054246,120]
[331513101,1720445161015,-500.0,0.00054246,120]
[331513102,1720445161114,-10162.8,0.00054246,120]
[331513103,1720445161211,-938.43,0.00054246,120]
[331513104,1720445161298,-1124.37,0.00054246,120]
[331513105,1720445161381,-4983.01,0.00054246,120]
[331513106,1720445161467,-5118.07,0.00054246,120]
[331513107,1720445161552,-2432.5,0.00054246,120]
[331513108,1720445161637,-5565.77,0.00054246,120]
[331513109,1720445161724,-2686.57,0.00054246,120]
[331513110,1720445161812,-524.96,0.00054246,120]
[331513111,1720445161900,-500.0,0.00054246,120]
[331513112,1720445161988,-1454.12,0.00054246,120]
[331513113,1720445162074,-5036.27,0.00054246,120]
[331513114,1720445162161,-1067.33,0.00054246,120]
[331513115,1720445162248,-500.0,0.00054246,120]
[331513116,1720445162334,-1767.38,0.00054246,120]
[331513117,1720445162418,-5646.1,0.00054246,120]
[331513118,1720445162509,-2304.81,0.00054246,120]
[331513119,1720445162596,-4701.07,0.00054246,120]
[331513120,1720445162681,-9047.3,0.00054246,120]
[331513121,1720445162765,-4919.53,0.00054246,120]
[331513122,1720445162848,-1659.74,0.00054246,120]
[331513123,1720445162931,-1525.81,0.00054246,120]
[331513124,1720445163015,-2133.05,0.00054246,120]
[331513125,1720445163108,-7680.57,0.00054246,120]
[331513126,1720445163206,-3352.13,0.00054246,120]
[331513127,1720445163302,-4421.49,0.00054246,120]
[331513128,1720445163388,-1759.96,0.00054246,120]
[331513129,1720445163477,-3903.92,0.00054246,120]
[331513130,1720445163566,-500.0,0.00054246,120]
[331513131,1720445163659,-1631.9,0.00054246,120]
[331513132,1720445163750,-3833.49,0.00054246,120]
[331513133,1720445163836,-5951.51,0.00054246,120]
[331513134,1720445163925,-5146.59,0.00054246,120]
[331513135,1720445164016,-2176.54,0.00054246,120]
[331513136,1720445164105,-6347.68,0.00054246,120]
[331513137,1720445164195,-1088.69,0.00054246,120]
[331513138,1720445164285,-23579.31,0.00054246,120]
[331513139,1720445164377,-500.0,0.00054246,120]
[331513140,1720445164470,-3966.4,0.00054246,120]
[331513141,1720445164563,-2068.28,0.00054246,120]
[331513142,1720445164653,-2578.3,0.00054246,120]
[331513143,1720445164749,-3921.63,0.00054246,120]
[331513144,1720445164839,-58243.57,0.00054246,120]
[331513145,1720445164928,-508.44,0.00054246,120]
[331513146,1720445165218,-627.12,0.00054246,120]
[331513147,1720445165311,-24232.54,0.00054246,120]
[331513148,1720445165403,-552.36,0.00054246,120]
[331513149,1720445165498,-5320.57,0.00054246,120]
[331513150,1720445165592,-6752.46,0.00054246,120]
[331513151,1720445165683,-623.17,0.00054246,120]
[331513152,1720445165778,-695.92,0.00054246,120]
[331513153,1720445165869,-2080.87,0.00054246,120]
[331513154,1720445165964,-6849.11,0.00054246,120]
[331513155,1720445166056,-1687.12,0.00054246,120]
[331513156,1720445166150,-1101.67,0.00054246,120]
[331513157,1720445166248,-741.08,0.00054246,120]
[331513158,1720445166345,-363.81314845,0.00054246,120]
[331513159,1720445166442,-6100.12,0.00054246,120]
[331513160,1720445166542,-1353.36,0.00054246,120]
[331513161,1720445166631,-500.0,0.00054246,120]
[331513162,1720445166723,-6271.45,0.00054246,120]
[331513163,1720445166817,-2621.09,0.00054246,120]
[331513164,1720445166906,-2109.31,0.00054246,120]
[331513165,1720445166998,-12321.64,0.00054246,120]
[331513166,1720445167091,-538.98,0.00054246,120]
[331513167,1720445167186,-5668.6,0.00054246,120]
[331513168,1720445167276,-6141.18,0.00054246,120]
[331513169,1720445167366,-500.0,0.00054246,120]
[331513170,1720445167457,-768.98,0.00054246,120]
[331513171,1720445167544,-639.8,0.00054246,120]
[331513172,1720445167633,-1783.66,0.00054246,120]
[331513173,1720445167722,-1148.58,0.00054246,120]
[331513174,1720445167812,-1046.64,0.00054246,120]
[331513175,1720445167902,-500.0,0.00054246,120]
[331513176,1720445167993,-2383.64,0.00054246,120]
[331513177,1720445168089,-1380.83,0.00054246,120]
[331513178,1720445168189,-2726.39,0.00054246,120]
[331513179,1720445168290,-1348.55,0.00054246,120]
[331513180,1720445168379,-646.48,0.00054246,120]
[331513181,1720445168468,-5858.28,0.00054246,120]
[331513182,1720445168559,-3087.04,0.00054246,120]
[331513183,1720445168648,-768.16,0.00054246,120]
[331513184,1720445168740,-1098.42,0.00054246,120]
[331513185,1720445168830,-1151.32,0.00054246,120]
[331513186,1720445168927,-28264.79,0.00054246,120]
[331513187,1720445169020,-500.0,0.00054246,120]
[331513188,1720445169114,-1188.45,0.00054246,120]
[331513189,1720445169209,-3804.3,0.00054246,120]
[331513190,1720445169304,-634.13,0.00054246,120]
[331513191,1720445169401,-1074.63,0.00054246,120]
[331513192,1720445169497,-972.69,0.00054246,120]
[331513193,1720445169594,-5641.11,0.00054246,120]
[331513194,1720445169686,-1971.31,0.00054246,120]
[331513195,1720445169775,-222.28,0.00054246,120]
[331513196,1720445169863,-652.19,0.00054246,120]
[331513197,1720445169952,-500.0,0.00054246,120]
[331513198,1720445170041,-1216.89,0.00054246,120]
[331513199,1720445170132,-1765.23,0.00054246,120]
[331513200,1720445170219,-520.66929337,0.00054246,120]
[331513201,1720445170308,-500.0,0.00054246,120]
[331513202,1720445170399,-5055.86,0.00054246,120]
[331513203,1720445170491,-500.0,0.00054246,120]
[331513204,1720445170582,-711.2,0.00054246,120]
[331513205,1720445170669,-2570.12,0.00054246,120]
[331513206,1720445170757,-2420.66,0.00054246,120]
[331513207,1720445170844,-2264.16,0.00054246,120]
[331513208,1720445170932,-672.24,0.00054246,120]
[331513209,1720445171019,-3711.44,0.00054246,120]
[331513210,1720445171110,-3195.91,0.00054246,120]
[331513211,1720445171200,-2590.75,0.00054246,120]
[331513212,1720445171289,-822.01,0.00054246,120]
[331513213,1720445171372,-3178.37,0.00054246,120]
[331513214,1720445171455,-549.24799418,0.00054246,120]
[331513215,1720445171539,-1501.03,0.00054246,120]
[331513216,1720445171620,-4652.58,0.00054246,120]
[331513217,1720445171702,-4176.17,0.00054246,120]
[331513218,1720445171781,-607.4,0.00054246,120]
[331513219,1720445171858,-1039.34,0.00054246,120]
[331513220,1720445171940,-517.37,0.00054246,120]
[331513221,1720445172026,-724.29,0.00054246,120]
[331513222,1720445172114,-1620.57,0.00054246,120]
[331513223,1720445172204,-1793.43,0.00054246,120]
[331513224,1720445172287,-12165.5,0.00054246,120]
[331513225,1720445172371,-976.96,0.00054246,120]
[331513226,1720445172452,-2857.78,0.00054246,120]
[331513227,1720445172535,-935.81,0.00054246,120]
[331513228,1720445172619,-794.19,0.00054246,120]
[331513229,1720445172702,-1096.71,0.00054246,120]
[331513230,1720445172783,-812.1,0.00054246,120]
[331513231,1720445172865,-2680.32,0.00054246,120]
[331513232,1720445172950,-1019.65,0.00054246,120]
[331513233,1720445173032,-500.0,0.00054246,120]
[331513234,1720445173130,-7204.83,0.00054246,120]
[331513235,1720445173233,-1152.98,0.00054246,120]
[331513236,1720445173330,-2326.97,0.00054246,120]
[331513237,1720445173425,-2038.8,0.00054246,120]
[331513238,1720445173527,-1237.99,0.00054246,120]
[331513239,1720445173619,-671.15,0.00054246,120]
[331513240,1720445173707,-507.99,0.00054246,120]
[331513241,1720445173791,-943.16,0.00054246,120]
[331513242,1720445173876,-5931.18,0.00054246,120]
[331513243,1720445173963,-4626.82,0.00054246,120]
[331513244,1720445174053,-2327.97,0.00054246,120]
[331513245,1720445174144,-1802.66,0.00054246,120]
[331513246,1720445174234,-789.69,0.00054246,120]
[331513247,1720445174328,-2045.63,0.00054246,120]
[331513248,1720445174416,-2179.21,0.00054246,120]
[331513249,1720445174508,-679.68,0.00054246,120]
[331513250,1720445174872,-229.28,0.00054246,120]
[331513251,1720445174963,-5851.04,0.00054246,120]
[331513252,1720445175057,-790.26,0.00054246,120]
[331513253,1720445175152,-3857.14,0.00054246,120]
[331513254,1720445175240,-918.0,0.00054246,120]
[331513255,1720445175330,-1071.27,0.00054246,120]
[331513256,1720445175417,-500.0,0.00054246,120]
[331513257,1720445175507,-9335.91,0.00054246,120]
[331513258,1720445175597,-971.7,0.00054246,120]
[331513259,1720445175690,-1080.21,0.00054246,120]
[331513260,1720445175780,-180.02774264,0.00054246,120]
[331513261,1720445175868,-1237.8,0.00054246,120]
[331513262,1720445175959,-500.0,0.00054246,120]
[331513263,1720445176051,-4880.04,0.00054246,120]
[331513264,1720445176140,-836.04,0.00054246,120]
[331513265,1720445176230,-2472.65,0.00054246,120]
[331513266,1720445176327,-1021.84,0.00054246,120]
[331513267,1720445176419,-550.11,0.00054246,120]
[331513268,1720445176516,-500.0,0.00054246,120]
[331513269,1720445176615,-1033.51,0.00054246,120]
[331513270,1720445176703,-500.0,0.00054246,120]
[331513271,1720445176792,-820.16,0.00054246,120]
[331513272,1720445176880,-1695.51,0.00054246,120]
[331513273,1720445176972,-511.6,0.00054246,120]
[331513274,1720445177067,-3132.94,0.00054246,120]
[331513275,1720445177163,-1913.66,0.00054246,120]
[331513276,1720445177259,-4157.78,0.00054246,120]
[331513277,1720445177346,-1698.07,0.00054246,120]
[331513278,1720445177438,-652.08,0.00054246,120]
[331513279,1720445177528,-637.31,0.00054246,120]
[331513280,1720445177618,-572.94,0.00054246,120]
[331513281,1720445177710,-3335.79,0.00054246,120]
[331513282,1720445177797,-1910.14,0.00054246,120]
[331513283,1720445177885,-2108.8,0.00054246,120]
[331513284,1720445177972,-694.53,0.00054246,120]
[331513285,1720445178057,-1154.16,0.00054246,120]
[331513286,1720445178155,-1564.34,0.00054246,120]
[331513287,1720445178251,-2059.4,0.00054246,120]
[331513288,1720445178340,-3033.38,0.00054246,120]
[331513289,1720445178425,-500.0,0.00054246,120]
[331513290,1720445178513,-989.58,0.00054246,120]
[331513291,1720445178600,-2399.84,0.00054246,120]
[331513292,1720445178688,-500.0,0.00054246,120]
[331513293,1720445178774,-1672.29,0.00054246,120]
[331513294,1720445178861,-500.0,0.00054246,120]
[331513295,1720445178948,-1604.31,0.00054246,120]
[331513296,1720445179036,-500.0,0.00054246,120]
[331513297,1720445179123,-500.0,0.00054246,120]
[331513298,1720445179211,-2417.35,0.00054246,120]
[331513299,1720445179302,-1416.43,0.00054246,120]
[331513300,1720445179396,-691.6,0.00054246,120]
[331513301,1720445179497,-972.54,0.00054246,120]
[331513302,1720445179595,-500.0,0.00054246,120]
[331513303,1720445179682,-1198.2,0.00054246,120]
[331513304,1720445179770,-992.98,0.00054246,120]
[331513305,1720445179851,-542.92,0.00054246,120]
[331513306,1720445179935,-1035.8,0.00054246,120]
[331513307,1720445180016,-3821.85,0.00054246,120]
[331513308,1720445180099,-971.56,0.00054246,120]
[331513309,1720445180182,-587.73,0.00054246,120]
[331513310,1720445180267,-1317.09,0.00054246,120]
[331513311,1720445180350,-1389.08,0.00054246,120]
[331513312,1720445180435,-1639.49,0.00054246,120]
[331513313,1720445180522,-867.82,0.00054246,120]
[331513314,1720445180614,-258.88501544,0.00054246,120]
[331513315,1720445180706,-500.0,0.00054246,120]
[331513316,1720445180790,-611.89952,0.00054246,120]
[331513317,1720445180874,-615.39,0.00054246,120]
[331513318,1720445180961,-2430.97,0.00054246,120]
[331513319,1720445181047,-500.0,0.00054246,120]
[331513320,1720445181136,-500.0,0.00054246,120]
[331513321,1720445181223,-2066.55,0.00054246,120]
[331513322,1720445181304,-921.41,0.00054246,120]
[331513323,1720445181386,-548.85,0.00054246,120]
[331513324,1720445181466,-333.71,0.00054246,120]
[331513325,1720445181550,-1045.8,0.00054246,120]
[331513326,1720445181631,-2785.91,0.00054246,120]
[331513327,1720445181712,-3346.99,0.00054246,120]
[331513328,1720445181793,-613.69,0.00054246,120]
[331513329,1720445181873,-2884.68,0.00054246,120]
[331513330,1720445181957,-1223.29,0.00054246,120]
[331513331,1720445182038,-521.67,0.00054246,120]
[331513332,1720445182119,-1430.22,0.00054246,120]
[331513333,1720445182198,-611.61,0.00054246,120]
[331513334,1720445182277,-1451.36,0.00054246,120]
[331513335,1720445182357,-729.84,0.00054246,120]
[331513336,1720445182434,-919.43,0.00054246,120]
[331513337,1720445182516,-1252.38,0.00054246,120]
[331513338,1720445182596,-902.66,0.00054246,120]
[331513339,1720445182674,-1130.53,0.00054246,120]
[331513340,1720445182753,-1710.79,0.00054246,120]
[331513341,1720445182834,-1387.34,0.00054246,120]
[331513342,1720445182912,-558.45,0.00054246,120]
[331513343,1720445182993,-595.41,0.00054246,120]
[331513344,1720445183085,-801.29,0.00054246,120]
[331513345,1720445183186,-681.95,0.00054246,120]
[331513346,1720445183283,-647.19,0.00054246,120]
[331513347,1720445183367,-500.0,0.00054246,120]
[331513348,1720445183453,-500.0,0.00054246,120]
[331513349,1720445183538,-920.91,0.00054246,120]
[331513350,1720445183623,-809.57,0.00054246,120]
[331513351,1720445183711,-866.07,0.00054246,120]
[331513352,1720445183794,-508.51,0.00054246,120]
[331513353,1720445183881,-1342.46,0.00054246,120]
[331513354,1720445184163,-386.54899564,0.00054246,120]
[331513355,1720445184255,-669.08,0.00054246,120]
[331513356,1720445184354,-924.87,0.00054246,120]
[331513357,1720445184451,-452.04517181,0.00054246,120]
[331513358,1720445184542,-1526.59,0.00054246,120]
[331513359,1720445184640,-2651.63,0.00054246,120]
[331513360,1720445184742,-500.0,0.00054246,120]
[331513361,1720445184838,-2744.63,0.00054246,120]
[331513362,1720445184937,-2267.0,0.00054246,120]
[331513363,1720445185044,-574.0,0.00054246,120]
[331513364,1720445185143,-775.01,0.00054246,120]
[331513365,1720445185240,-1695.04,0.00054246,120]
[331513366,1720445185340,-500.0,0.00054246,120]
[331513367,1720445185443,-1245.56,0.00054246,120]
[331513368,1720445185543,-785.15,0.00054246,120]
[331513369,1720445185641,-1245.98,0.00054246,120]
[331513370,1720445185740,-1155.34,0.00054246,120]
[331513371,1720445185839,-555.03,0.00054246,120]
[331513372,1720445185936,-803.39,0.00054246,120]
[331513373,1720445186034,-1305.54,0.00054246,120]
[331513374,1720445186130,-949.65,0.00054246,120]
[331513375,1720445186233,-500.0,0.00054246,120]
[331513376,1720445186335,-500.0,0.00054246,120]
[331513377,1720445186436,-1347.23,0.00054246,120]
[331513378,1720445186537,-568.39,0.00054246,120]
[331513379,1720445186628,-384.50140699,0.00054246,120]
[331513380,1720445186721,-784.35,0.00054246,120]
[331513381,1720445186814,-796.74,0.00054246,120]
[331513382,1720445186904,-838.64,0.00054246,120]
[331513383,1720445186997,-500.0,0.00054246,120]
[331513384,1720445187092,-739.18,0.00054246,120]
[331513385,1720445187187,-995.21,0.00054246,120]
[331513386,1720445187281,-1155.36,0.00054246,120]
[331513387,1720445187375,-751.81,0.00054246,120]
[331513388,1720445187470,-1142.72,0.00054246,120]
[331513389,1720445187565,-2126.32,0.00054246,120]
[331513390,1720445187664,-1163.78,0.00054246,120]
[331513391,1720445187762,-743.53,0.00054246,120]
[331513392,1720445187860,-934.66,0.00054246,120]
[331513393,1720445187959,-995.22,0.00054246,120]
[331513394,1720445188053,-784.36,0.00054246,120]
[331513395,1720445188161,-1579.18,0.00054246,120]
[331513396,1720445188268,-500.0,0.00054246,120]
[331513397,1720445188369,-1658.26,0.00054246,120]
[331513398,1720445188464,-500.0,0.00054246,120]
[331513399,1720445188561,-580.63,0.00054246,120]
[331513400,1720445188656,-693.77,0.00054246,120]
[331513401,1720445188750,-633.12,0.00054246,120]
[331513402,1720445188844,-1079.99,0.00054246,120]
[331513403,1720445188941,-510.79,0.00054246,120]
[331513404,1720445189039,-500.0,0.00054246,120]
[331513405,1720445189135,-534.95,0.00054246,120]
[331513406,1720445189234,-652.14,0.00054246,120]
[331513407,1720445189332,-2055.98,0.00054246,120]
[331513408,1720445189434,-808.16,0.00054246,120]
[331513409,1720445189531,-837.72,0.00054246,120]
[331513410,1720445189623,-974.55,0.00054246,120]
[331513411,1720445189714,-500.0,0.00054246,120]
[331513412,1720445189806,-668.71,0.00054246,120]
[331513413,1720445189899,-918.92,0.00054246,120]
[331513414,1720445189993,-733.46,0.00054246,120]
[331513415,1720445190088,-500.0,0.00054246,120]
[331513416,1720445190180,-777.5,0.00054246,120]
[331513417,1720445190273,-843.38,0.00054246,120]
[331513418,1720445190366,-500.0,0.00054246,120]
[331513419,1720445190457,-852.37,0.00054246,120]
[331513420,1720445190549,-1186.97,0.00054246,120]
[331513421,1720445190641,-1241.83,0.00054246,120]
[331513422,1720445190730,-807.64,0.00054246,120]
[331513423,1720445190817,-803.38,0.00054246,120]
[331513424,1720445190908,-657.3,0.00054246,120]
[331513425,1720445191002,-1355.78,0.00054246,120]
[331513426,1720445191095,-500.0,0.00054246,120]
[331513427,1720445191187,-500.0,0.00054246,120]
[331513428,1720445191275,-500.0,0.00054246,120]
[331513429,1720445191362,-500.0,0.00054246,120]
[331513430,1720445191449,-500.0,0.00054246,120]
[331513431,1720445191540,-525.31,0.00054246,120]
[331513432,1720445191631,-682.0,0.00054246,120]
[331513433,1720445191718,-1095.38,0.00054246,120]
[331513434,1720445191805,-1081.98,0.00054246,120]
[331513435,1720445191891,-360.90992378,0.00054246,120]
[331513436,1720445191976,-712.75,0.00054246,120]
[331513437,1720445192063,-766.48,0.00054246,120]
[331513438,1720445192150,-887.36,0.00054246,120]
[331513439,1720445192233,-989.73,0.00054246,120]
[331513440,1720445192315,-568.6,0.00054246,120]
[331513441,1720445192395,-665.12,0.00054246,120]
[331513442,1720445192479,-182.76827011,0.00054246,120]
[331513443,1720445192560,-785.44,0.00054246,120]
[331513444,1720445192648,-2486.56,0.00054246,120]
[331513445,1720445192736,-500.0,0.00054246,120]
[331513446,1720445192819,-290.62026392,0.00054246,120]
[331513447,1720445192898,-891.8,0.00054246,120]
[331513448,1720445192978,-500.0,0.00054246,120]
[331513449,1720445193056,-608.44,0.00054246,120]
[331513450,1720445193154,-705.57,0.00054246,120]
[331513451,1720445193252,-502.79,0.00054246,120]
[331513452,1720445193347,-500.0,0.00054246,120]
[331513453,1720445193435,-605.18,0.00054246,120]
[331513454,1720445193523,-500.0,0.00054246,120]
[331513455,1720445193611,-500.0,0.00054246,120]
[331513456,1720445193701,-500.0,0.00054246,120]
[331513457,1720445193791,-534.72,0.00054246,120]
[331513458,1720445194061,-712.81,0.00054246,120]
[331513459,1720445194152,-1760.36,0.00054246,120]
[331513460,1720445194246,-800.08,0.00054246,120]
[331513461,1720445194340,-291.41046443,0.00054246,120]
[331513462,1720445194434,-894.69,0.00054246,120]
[331513463,1720445194530,-723.54,0.00054246,120]
[331513464,1720445194622,-530.59,0.00054246,120]
[331513465,1720445194719,-839.95,0.00054246,120]
[331513466,1720445194811,-511.1,0.00054246,120]
[331513467,1720445194902,-760.52,0.00054246,120]
[331513468,1720445194996,-866.49,0.00054246,120]
[331513469,1720445195092,-396.47497717,0.00054246,120]
[331513470,1720445195186,-500.0,0.00054246,120]
[331513471,1720445195282,-578.19759631,0.00054246,120]
[331513472,1720445195376,-165.32320005,0.00054246,120]
[331513473,1720445195468,-893.31,0.00054246,120]
[331513474,1720445195559,-500.0,0.00054246,120]
[331513475,1720445195651,-500.0,0.00054246,120]
[331513476,1720445195746,-1290.88,0.00054246,120]
[331513477,1720445195836,-585.61,0.00054246,120]
[331513478,1720445195930,-574.25,0.00054246,120]
[331513479,1720445196024,-500.0,0.00054246,120]
[331513480,1720445196121,-891.99,0.00054246,120]
[331513481,1720445196220,-518.21,0.00054246,120]
[331513482,1720445196322,-500.0,0.00054246,120]
[331513483,1720445196418,-973.06,0.00054246,120]
[331513484,1720445196516,-1101.05,0.00054246,120]
[331513485,1720445196604,-1143.52,0.00054246,120]
[331513486,1720445196691,-589.06,0.00054246,120]
[331513487,1720445196776,-729.17,0.00054246,120]
[331513488,1720445196861,-765.16,0.00054246,120]
[331513489,1720445196949,-538.46,0.00054246,120]
[331513490,1720445197036,-500.0,0.00054246,120]
[331513491,1720445197125,-577.54,0.00054246,120]
[331513492,1720445197215,-987.37,0.00054246,120]
[331513493,1720445197309,-500.0,0.00054246,120]
[331513494,1720445197401,-707.5,0.00054246,120]
[331513495,1720445197493,-943.37,0.00054246,120]
[331513496,1720445197593,-584.78,0.00054246,120]
[331513497,1720445197684,-558.55,0.00054246,120]